[Event "Titled Tuesday Blitz March 08 Early 2022"]
[White "Murzin, Volodar"]
[Black "Rottenwohrer Suarez, Juan"]
[WhiteFideId "44155573"]
[BlackFideId "32068182"]
[WhiteElo "2585"]
[BlackElo "2158"]
[Result "1-0"]
[Round "04"]
[TimeControl "180+1"]
[Date "2022.03.09"]
[WhiteClock "0:00:14"]
[BlackClock "0:00:07"]

1. e4 {[%clk 0:03:00]}  c5 {[%clk 0:02:59]} 2. Nf3 {[%clk 0:03:00]}  d6 {[%clk 0:03:00]} 3. Bb5+ {[%clk 0:02:57]}  Bd7 {[%clk 0:02:44]} 4. Bxd7+ {[%clk 0:02:55]}  Nxd7 {[%clk 0:02:42]} 5. O-O {[%clk 0:02:56]}  Ngf6 {[%clk 0:02:38]} 6. Qe2 {[%clk 0:02:46]}  e6 {[%clk 0:02:36]} 7. c3 {[%clk 0:02:43]}  Be7 {[%clk 0:02:32]} 8. d4 {[%clk 0:02:42]}  O-O {[%clk 0:02:30]} 9. Rd1 {[%clk 0:02:41]}  cxd4 {[%clk 0:02:11]} 10. cxd4 {[%clk 0:02:39]}  d5 {[%clk 0:02:12]} 11. e5 {[%clk 0:02:38]}  Ne4 {[%clk 0:02:12]} 12. Ne1 {[%clk 0:02:38]}  h6 {[%clk 0:02:00]} 13. f3 {[%clk 0:02:36]}  Ng5 {[%clk 0:01:59]} 14. Nc3 {[%clk 0:02:29]}  Rc8 {[%clk 0:01:58]} 15. h4 {[%clk 0:02:18]}  Nh7 {[%clk 0:01:57]} 16. g3 {[%clk 0:02:18]}  a6 {[%clk 0:01:53]} 17. f4 {[%clk 0:02:16]}  b5 {[%clk 0:01:50]} 18. Nf3 {[%clk 0:02:13]}  Nb6 {[%clk 0:01:47]} 19. Be3 {[%clk 0:02:07]}  Nc4 {[%clk 0:01:47]} 20. Bf2 {[%clk 0:02:06]}  Qa5 {[%clk 0:01:44]} 21. Rd3 {[%clk 0:01:43]}  Rc7 {[%clk 0:01:39]} 22. Be1 {[%clk 0:01:42]}  Bb4 {[%clk 0:01:32]} 23. a3 {[%clk 0:01:38]}  Bxc3 {[%clk 0:01:32]} 24. Bxc3 {[%clk 0:01:30]}  Qa4 {[%clk 0:01:22]} 25. Bb4 {[%clk 0:01:23]}  Nxb2 {[%clk 0:00:48]} 26. Qxb2 {[%clk 0:01:19]}  Rfc8 {[%clk 0:00:49]} 27. Bc5 {[%clk 0:01:18]}  Nf8 {[%clk 0:00:46]} 28. Qb4 {[%clk 0:01:10]}  Qc2 {[%clk 0:00:45]} 29. Rc3 {[%clk 0:00:42]}  Qe4 {[%clk 0:00:44]} 30. Re1 {[%clk 0:00:41]}  Qg6 {[%clk 0:00:42]} 31. Kf2 {[%clk 0:00:38]}  Nd7 {[%clk 0:00:42]} 32. Rec1 {[%clk 0:00:38]}  Qe4 {[%clk 0:00:24]} 33. Nd2 {[%clk 0:00:33]}  Qf5 {[%clk 0:00:21]} 34. Bd6 {[%clk 0:00:30]}  Rc4 {[%clk 0:00:14]} 35. Nxc4 {[%clk 0:00:29]}  dxc4 {[%clk 0:00:15]} 36. Qa5 {[%clk 0:00:19]}  Qh3 {[%clk 0:00:13]} 37. Qxa6 {[%clk 0:00:15]}  Qh2+ {[%clk 0:00:13]} 38. Kf3 {[%clk 0:00:15]}  Re8 {[%clk 0:00:08]} 39. Qxb5 {[%clk 0:00:14]}  Rd8 {[%clk 0:00:07]} 40. Qxc4 {[%clk 0:00:14]} 1-0


[Site "https://www.chess.com"]

[Event "Titled Tuesday Blitz March 08 Early 2022"]
[White "Nazari, Arad"]
[Black "Chernomordik, Pavel"]
[WhiteFideId "12577324"]
[BlackFideId "2804530"]
[WhiteElo "2120"]
[BlackElo "2249"]
[Result "1-0"]
[Round "04"]
[TimeControl "180+1"]
[Date "2022.03.09"]
[WhiteClock "0:00:24"]
[BlackClock "0:00:11"]

1. e4 {[%clk 0:02:57]}  g6 {[%clk 0:03:00]} 2. d4 {[%clk 0:02:48]}  Bg7 {[%clk 0:03:00]} 3. Nc3 {[%clk 0:02:30]}  d6 {[%clk 0:02:59]} 4. f4 {[%clk 0:02:22]}  a6 {[%clk 0:02:59]} 5. Nf3 {[%clk 0:02:21]}  b5 {[%clk 0:02:58]} 6. Bd3 {[%clk 0:02:20]}  Nd7 {[%clk 0:02:54]} 7. Ne2 {[%clk 0:02:20]}  c5 {[%clk 0:02:52]} 8. c3 {[%clk 0:02:20]}  Bb7 {[%clk 0:02:51]} 9. a4 {[%clk 0:02:18]}  Qb6 {[%clk 0:02:47]} 10. axb5 {[%clk 0:02:17]}  axb5 {[%clk 0:02:46]} 11. Rxa8+ {[%clk 0:02:18]}  Bxa8 {[%clk 0:02:46]} 12. Be3 {[%clk 0:02:09]}  Ngf6 {[%clk 0:02:38]} 13. O-O {[%clk 0:02:04]}  Bxe4 {[%clk 0:02:30]} 14. Bxe4 {[%clk 0:02:02]}  Nxe4 {[%clk 0:02:29]} 15. dxc5 {[%clk 0:02:01]}  dxc5 {[%clk 0:02:25]} 16. Qd5 {[%clk 0:02:01]}  Nef6 {[%clk 0:02:16]} 17. Qa8+ {[%clk 0:02:00]}  Qd8 {[%clk 0:02:15]} 18. Qxd8+ {[%clk 0:01:56]}  Kxd8 {[%clk 0:02:15]} 19. Ng5 {[%clk 0:01:56]}  Rf8 {[%clk 0:02:09]} 20. Ra1 {[%clk 0:01:55]}  Kc7 {[%clk 0:02:09]} 21. b4 {[%clk 0:01:51]}  Nd5 {[%clk 0:02:01]} 22. Ra7+ {[%clk 0:01:50]}  Kc6 {[%clk 0:02:00]} 23. Bd2 {[%clk 0:01:29]}  cxb4 {[%clk 0:01:49]} 24. cxb4 {[%clk 0:01:26]}  N7b6 {[%clk 0:01:32]} 25. Nxh7 {[%clk 0:01:22]}  Ra8 {[%clk 0:01:29]} 26. Rxa8 {[%clk 0:01:20]}  Nxa8 {[%clk 0:01:29]} 27. Ng5 {[%clk 0:01:21]}  f5 {[%clk 0:01:22]} 28. Ne6 {[%clk 0:01:21]}  Bb2 {[%clk 0:01:18]} 29. Nf8 {[%clk 0:01:17]}  Nab6 {[%clk 0:01:13]} 30. Nxg6 {[%clk 0:01:13]}  Nc4 {[%clk 0:01:12]} 31. Be1 {[%clk 0:01:13]}  Nce3 {[%clk 0:00:58]} 32. Ne5+ {[%clk 0:01:02]}  Kd6 {[%clk 0:00:48]} 33. Nd3 {[%clk 0:01:00]}  Bf6 {[%clk 0:00:40]} 34. h4 {[%clk 0:00:56]}  Nc2 {[%clk 0:00:38]} 35. Bf2 {[%clk 0:00:37]}  Kc6 {[%clk 0:00:27]} 36. h5 {[%clk 0:00:26]}  Ncxb4 {[%clk 0:00:26]} 37. Nxb4+ {[%clk 0:00:26]}  Nxb4 {[%clk 0:00:25]} 38. h6 {[%clk 0:00:20]}  Kd5 {[%clk 0:00:24]} 39. h7 {[%clk 0:00:20]}  Nd3 {[%clk 0:00:22]} 40. Bd4 {[%clk 0:00:18]}  e5 {[%clk 0:00:21]} 41. fxe5 {[%clk 0:00:18]}  Nxe5 {[%clk 0:00:20]} 42. Kf1 {[%clk 0:00:18]}  b4 {[%clk 0:00:20]} 43. Bb2 {[%clk 0:00:17]}  b3 {[%clk 0:00:18]} 44. Nf4+ {[%clk 0:00:18]}  Kc4 {[%clk 0:00:18]} 45. Ng6 {[%clk 0:00:18]}  Nxg6 {[%clk 0:00:16]} 46. Bxf6 {[%clk 0:00:19]}  Kd3 {[%clk 0:00:15]} 47. h8=Q {[%clk 0:00:19]}  Nxh8 {[%clk 0:00:14]} 48. Bxh8 {[%clk 0:00:20]}  Kc2 {[%clk 0:00:14]} 49. Kf2 {[%clk 0:00:21]}  b2 {[%clk 0:00:14]} 50. Bxb2 {[%clk 0:00:21]}  Kxb2 {[%clk 0:00:14]} 51. Ke3 {[%clk 0:00:22]}  Kc3 {[%clk 0:00:15]} 52. Kf4 {[%clk 0:00:22]}  Kd4 {[%clk 0:00:15]} 53. Kxf5 {[%clk 0:00:23]}  Kd5 {[%clk 0:00:11]} 54. g4 {[%clk 0:00:24]} 1-0


[Site "https://www.chess.com"]

[Event "Titled Tuesday Blitz March 08 Early 2022"]
[White "Neiksans, Arturs"]
[Black "Aldokhin, Ivan"]
[WhiteFideId "11601388"]
[BlackFideId "24115720"]
[WhiteElo "2447"]
[BlackElo "2231"]
[Result "1-0"]
[Round "04"]
[TimeControl "180+1"]
[Date "2022.03.08"]
[WhiteClock "0:01:00"]
[BlackClock "0:00:01"]

1. e4 {[%clk 0:02:46]}  c5 {[%clk 0:02:59]} 2. Nf3 {[%clk 0:02:46]}  e6 {[%clk 0:03:00]} 3. g3 {[%clk 0:02:46]}  Nf6 {[%clk 0:02:58]} 4. e5 {[%clk 0:02:46]}  Nd5 {[%clk 0:02:58]} 5. Bg2 {[%clk 0:02:46]}  Nc6 {[%clk 0:02:54]} 6. O-O {[%clk 0:02:45]}  d6 {[%clk 0:02:49]} 7. d4 {[%clk 0:02:45]}  cxd4 {[%clk 0:02:37]} 8. exd6 {[%clk 0:02:45]}  Bxd6 {[%clk 0:02:26]} 9. Nxd4 {[%clk 0:02:45]}  Nxd4 {[%clk 0:02:07]} 10. Qxd4 {[%clk 0:02:44]}  O-O {[%clk 0:02:07]} 11. c4 {[%clk 0:02:38]}  Nf6 {[%clk 0:01:34]} 12. Nc3 {[%clk 0:02:21]}  e5 {[%clk 0:01:32]} 13. Qh4 {[%clk 0:02:19]}  Be7 {[%clk 0:01:22]} 14. Rd1 {[%clk 0:02:18]}  Qb6 {[%clk 0:01:14]} 15. Bg5 {[%clk 0:01:46]}  Qxb2 {[%clk 0:00:59]} 16. Ne4 {[%clk 0:01:45]}  Bf5 {[%clk 0:00:25]} 17. Nxf6+ {[%clk 0:01:36]}  gxf6 {[%clk 0:00:24]} 18. Bxf6 {[%clk 0:01:36]}  Bxf6 {[%clk 0:00:20]} 19. Qxf6 {[%clk 0:01:36]}  Bc2 {[%clk 0:00:15]} 20. Re1 {[%clk 0:01:34]}  Rfe8 {[%clk 0:00:15]} 21. Bd5 {[%clk 0:01:33]}  Bg6 {[%clk 0:00:15]} 22. Rab1 {[%clk 0:01:30]}  Qc3 {[%clk 0:00:03]} 23. Re3 {[%clk 0:01:28]}  Qd4 {[%clk 0:00:01]} 24. Rxb7 {[%clk 0:01:25]}  Qd1+ {[%clk 0:00:01]} 25. Kg2 {[%clk 0:01:25]}  Rf8 {[%clk 0:00:02]} 26. Rxe5 {[%clk 0:01:17]}  Rad8 {[%clk 0:00:02]} 27. Qf4 {[%clk 0:01:10]}  Rxd5 {[%clk 0:00:02]} 28. cxd5 {[%clk 0:01:07]}  Bd3 {[%clk 0:00:01]} 29. h4 {[%clk 0:01:00]} 1-0


[Site "https://www.chess.com"]

[Event "Titled Tuesday Blitz March 08 Early 2022"]
[White "Nguyen Hong Nhung"]
[Black "Talibov, Shiroghlan"]
[WhiteFideId "12412201"]
[BlackFideId "13429078"]
[WhiteElo "1661"]
[BlackElo "2070"]
[Result "0-1"]
[Round "04"]
[TimeControl "180+1"]
[Date "2022.03.09"]
[WhiteClock "0:01:57"]
[BlackClock "0:02:22"]

1. e4 {[%clk 0:03:00]}  c5 {[%clk 0:02:54]} 2. Nf3 {[%clk 0:02:59]}  Nc6 {[%clk 0:02:52]} 3. d4 {[%clk 0:02:58]}  cxd4 {[%clk 0:02:52]} 4. Nxd4 {[%clk 0:02:59]}  Nf6 {[%clk 0:02:53]} 5. Nc3 {[%clk 0:02:58]}  e6 {[%clk 0:02:53]} 6. Be3 {[%clk 0:02:55]}  Bb4 {[%clk 0:02:52]} 7. Qf3 {[%clk 0:02:53]}  Qa5 {[%clk 0:02:49]} 8. Nxc6 {[%clk 0:02:39]}  Bxc3+ {[%clk 0:02:49]} 9. Kd1 {[%clk 0:02:39]}  dxc6 {[%clk 0:02:47]} 10. bxc3 {[%clk 0:02:39]}  Qxc3 {[%clk 0:02:47]} 11. Rb1 {[%clk 0:02:38]}  e5 {[%clk 0:02:43]} 12. h3 {[%clk 0:02:29]}  Be6 {[%clk 0:02:29]} 13. Bd3 {[%clk 0:02:27]}  Rd8 {[%clk 0:02:26]} 14. Ke2 {[%clk 0:02:20]}  Bc4 {[%clk 0:02:26]} 15. Rhd1 {[%clk 0:02:14]}  Qxc2+ {[%clk 0:02:26]} 16. Rd2 {[%clk 0:02:02]}  Bxd3+ {[%clk 0:02:25]} 17. Ke1 {[%clk 0:01:57]}  Qxb1+ {[%clk 0:02:26]} 18. Rd1 {[%clk 0:01:58]}  Qb4+ {[%clk 0:02:25]} 19. Bd2 {[%clk 0:01:58]}  Qxe4+ {[%clk 0:02:25]} 20. Qxe4 {[%clk 0:01:58]}  Nxe4 {[%clk 0:02:26]} 21. Bb4 {[%clk 0:01:55]}  c5 {[%clk 0:02:25]} 22. Ba3 {[%clk 0:01:55]}  Bb5 {[%clk 0:02:25]} 23. Rc1 {[%clk 0:01:55]}  Ba4 {[%clk 0:02:23]} 24. f3 {[%clk 0:01:53]}  Rd1+ {[%clk 0:02:23]} 25. Rxd1 {[%clk 0:01:53]}  Bxd1 {[%clk 0:02:24]} 26. Kxd1 {[%clk 0:01:53]}  Nc3+ {[%clk 0:02:24]} 27. Kc2 {[%clk 0:01:53]}  Nxa2 {[%clk 0:02:25]} 28. Bxc5 {[%clk 0:01:53]}  b6 {[%clk 0:02:25]} 29. Bd6 {[%clk 0:01:53]}  a5 {[%clk 0:02:25]} 30. Bxe5 {[%clk 0:01:53]}  f6 {[%clk 0:02:25]} 31. Bd4 {[%clk 0:01:53]}  Nb4+ {[%clk 0:02:25]} 32. Kb3 {[%clk 0:01:53]}  Kd7 {[%clk 0:02:24]} 33. Bxb6 {[%clk 0:01:54]}  Rb8 {[%clk 0:02:24]} 34. Bxa5 {[%clk 0:01:54]}  Nc6+ {[%clk 0:02:24]} 35. Ka4 {[%clk 0:01:54]}  Ra8 {[%clk 0:02:24]} 36. Kb5 {[%clk 0:01:53]}  Rxa5+ {[%clk 0:02:24]} 37. Kb6 {[%clk 0:01:54]}  Ra2 {[%clk 0:02:24]} 38. g4 {[%clk 0:01:53]}  Rg2 {[%clk 0:02:25]} 39. h4 {[%clk 0:01:53]}  Rg3 {[%clk 0:02:25]} 40. h5 {[%clk 0:01:54]}  Rxf3 {[%clk 0:02:24]} 41. h6 {[%clk 0:01:54]}  gxh6 {[%clk 0:02:25]} 42. Kb7 {[%clk 0:01:54]}  f5 {[%clk 0:02:25]} 43. Ka8 {[%clk 0:01:54]}  fxg4 {[%clk 0:02:24]} 44. Kb7 {[%clk 0:01:54]}  g3 {[%clk 0:02:24]} 45. Ka8 {[%clk 0:01:55]}  g2 {[%clk 0:02:24]} 46. Kb7 {[%clk 0:01:56]}  Rb3+ {[%clk 0:02:22]} 47. Ka8 {[%clk 0:01:57]}  Rb8# {[%clk 0:02:22]} 0-1


[Site "https://www.chess.com"]

[Event "Titled Tuesday Blitz March 08 Early 2022"]
[White "Odegov, Artem"]
[Black "Nguyen, Thi Minh Oanh"]
[WhiteFideId "34183644"]
[BlackFideId "12404080"]
[WhiteElo "2286"]
[BlackElo "1825"]
[Result "1-0"]
[Round "04"]
[TimeControl "180+1"]
[Date "2022.03.09"]
[WhiteClock "0:00:26"]
[BlackClock "0:00:42"]

1. d4 {[%clk 0:03:00]}  d5 {[%clk 0:02:57]} 2. c4 {[%clk 0:03:01]}  c6 {[%clk 0:02:57]} 3. Nf3 {[%clk 0:02:59]}  Nf6 {[%clk 0:02:57]} 4. Nc3 {[%clk 0:03:00]}  e6 {[%clk 0:02:56]} 5. Bg5 {[%clk 0:02:59]}  h6 {[%clk 0:02:56]} 6. Bh4 {[%clk 0:02:57]}  dxc4 {[%clk 0:02:56]} 7. e4 {[%clk 0:02:56]}  g5 {[%clk 0:02:55]} 8. Bg3 {[%clk 0:02:56]}  b5 {[%clk 0:02:56]} 9. Be2 {[%clk 0:02:54]}  b4 {[%clk 0:02:53]} 10. Na4 {[%clk 0:02:53]}  Nxe4 {[%clk 0:02:53]} 11. Be5 {[%clk 0:02:50]}  f6 {[%clk 0:02:52]} 12. Qc2 {[%clk 0:02:49]}  fxe5 {[%clk 0:02:35]} 13. Qxe4 {[%clk 0:02:49]}  exd4 {[%clk 0:02:35]} 14. Qg6+ {[%clk 0:02:43]}  Ke7 {[%clk 0:02:35]} 15. Bxc4 {[%clk 0:02:41]}  Qd6 {[%clk 0:02:23]} 16. O-O {[%clk 0:02:38]}  Nd7 {[%clk 0:02:18]} 17. Rae1 {[%clk 0:02:32]}  Nb6 {[%clk 0:02:09]} 18. Nxb6 {[%clk 0:02:17]}  axb6 {[%clk 0:02:10]} 19. Bxe6 {[%clk 0:02:04]}  Bxe6 {[%clk 0:02:05]} 20. Nxd4 {[%clk 0:02:02]}  Kd7 {[%clk 0:01:54]} 21. Rxe6 {[%clk 0:01:57]}  Qc5 {[%clk 0:01:34]} 22. Qf7+ {[%clk 0:01:51]}  Be7 {[%clk 0:01:33]} 23. Nf5 {[%clk 0:01:49]}  Rae8 {[%clk 0:01:31]} 24. Rd1+ {[%clk 0:01:48]}  Kc7 {[%clk 0:01:28]} 25. Rxe7+ {[%clk 0:01:37]}  Rxe7 {[%clk 0:01:27]} 26. Nxe7 {[%clk 0:01:37]}  Kb8 {[%clk 0:01:22]} 27. Qf6 {[%clk 0:01:29]}  Re8 {[%clk 0:01:20]} 28. Nxc6+ {[%clk 0:01:24]}  Ka8 {[%clk 0:01:20]} 29. h3 {[%clk 0:00:57]}  Rc8 {[%clk 0:01:17]} 30. Ne5 {[%clk 0:00:54]}  Kb7 {[%clk 0:01:13]} 31. Rd7+ {[%clk 0:00:52]}  Ka6 {[%clk 0:01:13]} 32. Nf3 {[%clk 0:00:42]}  Rc6 {[%clk 0:01:06]} 33. Qd4 {[%clk 0:00:41]}  Qc1+ {[%clk 0:00:59]} 34. Qd1 {[%clk 0:00:40]}  Kb5 {[%clk 0:00:49]} 35. Rd5+ {[%clk 0:00:38]}  Ka6 {[%clk 0:00:46]} 36. Qxc1 {[%clk 0:00:31]}  Rxc1+ {[%clk 0:00:46]} 37. Kh2 {[%clk 0:00:32]}  Ra1 {[%clk 0:00:46]} 38. Rd4 {[%clk 0:00:30]}  Ka5 {[%clk 0:00:45]} 39. a3 {[%clk 0:00:25]}  bxa3 {[%clk 0:00:43]} 40. bxa3 {[%clk 0:00:26]}  Rxa3 {[%clk 0:00:43]} 41. Rd6 {[%clk 0:00:26]}  Ra2 {[%clk 0:00:43]} 42. Rxh6 {[%clk 0:00:26]}  Rxf2 {[%clk 0:00:43]} 43. Rg6 {[%clk 0:00:26]}  b5 {[%clk 0:00:42]} 44. Rxg5 {[%clk 0:00:27]}  Ka4 {[%clk 0:00:42]} 45. Rg8 {[%clk 0:00:26]}  b4 {[%clk 0:00:42]} 46. Ra8+ {[%clk 0:00:27]}  Kb5 {[%clk 0:00:42]} 47. h4 {[%clk 0:00:27]}  Re2 {[%clk 0:00:42]} 48. Nd4+ {[%clk 0:00:26]} 1-0


[Site "https://www.chess.com"]

[Event "Titled Tuesday Blitz March 08 Early 2022"]
[White "Oganian, Miran"]
[Black "Suder, Jakub"]
[WhiteFideId "4122488"]
[BlackFideId "1195310"]
[WhiteElo "2357"]
[BlackElo "2058"]
[Result "0-1"]
[Round "04"]
[TimeControl "180+1"]
[Date "2022.03.09"]
[WhiteClock "0:00:01"]
[BlackClock "0:00:14"]

1. e4 {[%clk 0:02:57]}  c5 {[%clk 0:02:59]} 2. Nf3 {[%clk 0:02:58]}  e6 {[%clk 0:03:00]} 3. c3 {[%clk 0:02:58]}  Nf6 {[%clk 0:02:59]} 4. e5 {[%clk 0:02:58]}  Nd5 {[%clk 0:02:59]} 5. d4 {[%clk 0:02:59]}  cxd4 {[%clk 0:02:59]} 6. cxd4 {[%clk 0:03:00]}  d6 {[%clk 0:02:59]} 7. Bc4 {[%clk 0:03:00]}  Nb6 {[%clk 0:02:57]} 8. Bb3 {[%clk 0:02:58]}  Bd7 {[%clk 0:02:57]} 9. O-O {[%clk 0:02:56]}  Bc6 {[%clk 0:02:57]} 10. Nc3 {[%clk 0:02:56]}  N8d7 {[%clk 0:02:55]} 11. Bf4 {[%clk 0:02:55]}  dxe5 {[%clk 0:02:53]} 12. dxe5 {[%clk 0:02:52]}  Nc5 {[%clk 0:02:47]} 13. Bc2 {[%clk 0:02:52]}  Be7 {[%clk 0:02:46]} 14. Qe2 {[%clk 0:02:52]}  Nd5 {[%clk 0:02:33]} 15. Bd2 {[%clk 0:02:37]}  Nxc3 {[%clk 0:02:30]} 16. Bxc3 {[%clk 0:02:34]}  O-O {[%clk 0:02:28]} 17. Rad1 {[%clk 0:02:25]}  Qb6 {[%clk 0:02:28]} 18. Nd4 {[%clk 0:02:17]}  Bd5 {[%clk 0:02:22]} 19. f4 {[%clk 0:02:12]}  Rad8 {[%clk 0:01:58]} 20. Kh1 {[%clk 0:02:10]}  f5 {[%clk 0:01:51]} 21. exf6 {[%clk 0:02:08]}  Bxf6 {[%clk 0:01:52]} 22. b4 {[%clk 0:01:42]}  Na6 {[%clk 0:01:51]} 23. Qh5 {[%clk 0:01:27]}  g6 {[%clk 0:01:35]} 24. Bxg6 {[%clk 0:01:26]}  Rd7 {[%clk 0:01:31]} 25. Bb1 {[%clk 0:00:45]}  Rg7 {[%clk 0:01:27]} 26. Rf2 {[%clk 0:00:41]}  Nxb4 {[%clk 0:01:18]} 27. Rb2 {[%clk 0:00:32]}  a5 {[%clk 0:00:52]} 28. a3 {[%clk 0:00:21]}  Qc7 {[%clk 0:00:50]} 29. Nb5 {[%clk 0:00:17]}  Qxf4 {[%clk 0:00:45]} 30. h3 {[%clk 0:00:03]}  Bxc3 {[%clk 0:00:30]} 31. Nxc3 {[%clk 0:00:04]}  Bc6 {[%clk 0:00:15]} 32. axb4 {[%clk 0:00:03]}  axb4 {[%clk 0:00:16]} 33. Na2 {[%clk 0:00:01]}  b3 {[%clk 0:00:16]} 34. Nc3 {[%clk 0:00:01]}  Qg3 {[%clk 0:00:15]} 35. Kg1 {[%clk 0:00:01]}  Qxc3 {[%clk 0:00:14]} 0-1


[Site "https://www.chess.com"]

[Event "Titled Tuesday Blitz March 08 Early 2022"]
[White "Omariev, Maksim"]
[Black "Marcinczyk, Monika"]
[WhiteFideId "4193423"]
[BlackFideId "1192051"]
[WhiteElo "2421"]
[BlackElo "1783"]
[Result "1-0"]
[Round "04"]
[TimeControl "180+1"]
[Date "2022.03.09"]
[WhiteClock "0:00:51"]
[BlackClock "0:00:03"]

1. g4 {[%clk 0:03:00]}  d5 {[%clk 0:02:59]} 2. Bg2 {[%clk 0:02:59]}  e5 {[%clk 0:03:00]} 3. d4 {[%clk 0:02:55]}  e4 {[%clk 0:02:57]} 4. g5 {[%clk 0:02:55]}  Be7 {[%clk 0:02:51]} 5. h4 {[%clk 0:02:54]}  h6 {[%clk 0:02:50]} 6. f4 {[%clk 0:02:40]}  hxg5 {[%clk 0:02:44]} 7. hxg5 {[%clk 0:02:20]}  Rxh1 {[%clk 0:02:40]} 8. Bxh1 {[%clk 0:02:21]}  Bg4 {[%clk 0:02:34]} 9. c4 {[%clk 0:02:16]}  c6 {[%clk 0:02:18]} 10. Nc3 {[%clk 0:02:13]}  Na6 {[%clk 0:01:52]} 11. Qb3 {[%clk 0:02:09]}  dxc4 {[%clk 0:01:31]} 12. Qxc4 {[%clk 0:02:10]}  Be6 {[%clk 0:01:32]} 13. Qa4 {[%clk 0:02:08]}  Bb4 {[%clk 0:01:16]} 14. e3 {[%clk 0:01:47]}  Bxc3+ {[%clk 0:00:45]} 15. bxc3 {[%clk 0:01:47]}  Qd5 {[%clk 0:00:44]} 16. Ne2 {[%clk 0:01:33]}  Ne7 {[%clk 0:00:41]} 17. Ng3 {[%clk 0:01:29]}  Bf5 {[%clk 0:00:27]} 18. Ba3 {[%clk 0:01:16]}  g6 {[%clk 0:00:23]} 19. c4 {[%clk 0:01:09]}  Qe6 {[%clk 0:00:18]} 20. Rb1 {[%clk 0:01:09]}  O-O-O {[%clk 0:00:16]} 21. Qc2 {[%clk 0:00:54]}  Nc7 {[%clk 0:00:03]} 22. Kf2 {[%clk 0:00:51]} 1-0


[Site "https://www.chess.com"]

[Event "Titled Tuesday Blitz March 08 Early 2022"]
[White "Orlov, Georgi"]
[Black "Tarasova, Viktoriya"]
[WhiteFideId "2011271"]
[BlackFideId "4175840"]
[WhiteElo "2526"]
[BlackElo "2182"]
[Result "1-0"]
[Round "04"]
[TimeControl "180+1"]
[Date "2022.03.09"]
[WhiteClock "0:00:13"]
[BlackClock "0:00:02"]

1. d4 {[%clk 0:03:00]}  Nf6 {[%clk 0:02:59]} 2. Nf3 {[%clk 0:03:01]}  e6 {[%clk 0:02:59]} 3. g3 {[%clk 0:02:59]}  b6 {[%clk 0:02:59]} 4. Bg2 {[%clk 0:02:59]}  Bb7 {[%clk 0:02:57]} 5. O-O {[%clk 0:02:59]}  c5 {[%clk 0:02:57]} 6. c4 {[%clk 0:02:58]}  cxd4 {[%clk 0:02:57]} 7. Qxd4 {[%clk 0:02:53]}  Be7 {[%clk 0:02:56]} 8. Rd1 {[%clk 0:02:52]}  O-O {[%clk 0:02:55]} 9. Bf4 {[%clk 0:02:51]}  Nc6 {[%clk 0:02:48]} 10. Qe3 {[%clk 0:02:28]}  d6 {[%clk 0:02:41]} 11. Nc3 {[%clk 0:02:26]}  Ng4 {[%clk 0:02:35]} 12. Qd2 {[%clk 0:02:22]}  e5 {[%clk 0:02:31]} 13. Bg5 {[%clk 0:02:14]}  f6 {[%clk 0:02:17]} 14. Be3 {[%clk 0:02:13]}  Nxe3 {[%clk 0:02:10]} 15. Qxe3 {[%clk 0:02:13]}  f5 {[%clk 0:02:06]} 16. Nxe5 {[%clk 0:02:01]}  Nxe5 {[%clk 0:01:58]} 17. Bxb7 {[%clk 0:02:00]}  Rb8 {[%clk 0:01:59]} 18. Bd5+ {[%clk 0:01:57]}  Kh8 {[%clk 0:01:59]} 19. Nb5 {[%clk 0:01:46]}  f4 {[%clk 0:01:57]} 20. gxf4 {[%clk 0:01:44]}  Ng4 {[%clk 0:01:51]} 21. Qg3 {[%clk 0:01:43]}  Rf6 {[%clk 0:01:31]} 22. h3 {[%clk 0:01:31]}  Nh6 {[%clk 0:01:21]} 23. Kh2 {[%clk 0:01:27]}  Rg6 {[%clk 0:01:18]} 24. Qd3 {[%clk 0:01:25]}  Bh4 {[%clk 0:01:14]} 25. Rf1 {[%clk 0:01:21]}  Qf6 {[%clk 0:01:12]} 26. Qf3 {[%clk 0:01:05]}  Rf8 {[%clk 0:00:58]} 27. e3 {[%clk 0:01:01]}  Qxb2 {[%clk 0:00:48]} 28. Nd4 {[%clk 0:00:54]}  Qa3 {[%clk 0:00:27]} 29. Rg1 {[%clk 0:00:32]}  Rgf6 {[%clk 0:00:16]} 30. Rg2 {[%clk 0:00:24]}  Nf5 {[%clk 0:00:14]} 31. Ne6 {[%clk 0:00:22]}  Re8 {[%clk 0:00:10]} 32. Qh5 {[%clk 0:00:20]}  g6 {[%clk 0:00:05]} 33. Rxg6 {[%clk 0:00:16]}  Rxg6 {[%clk 0:00:05]} 34. Qxf5 {[%clk 0:00:16]}  Reg8 {[%clk 0:00:05]} 35. Ng5 {[%clk 0:00:14]}  Rxg5 {[%clk 0:00:04]} 36. fxg5 {[%clk 0:00:14]}  Qb2 {[%clk 0:00:02]} 37. Qf6+ {[%clk 0:00:13]} 1-0


[Site "https://www.chess.com"]